[Event "Gibraltar Challengers B 2019"]
[Site "Caleta"]
[Date "2019.01.27"]
[Round "2"]
[White "Pinho, Paulo"]
[Black "Cano Sevilla, Ivan"]
[Result "1-0"]
[ECO "E10"]
[WhiteElo "2205"]
[BlackElo "1950"]
[Annotator "NA"]
[PlyCount "53"]
[EventDate "2019.01.18"]
[EventType "swiss"]
[EventCountry "GGB"]
[SourceTitle "playchess.com"]
[Source "ChessBase"]
[SourceQuality "1"]
[TimeControl "6600+10"]

{[%evp 8,53,21,12,31,29,37,2,80,75,141,32767,32767,171,225,32767,32767,216,179,32767,212,170,199,231,32767,223,233,32767,435,459,896,1002,32767,775,774,32767,32767,619,29989,29990,29992,32767,29991,29991,29995,29996,29997,29998]} 1. d4 {[%emt 0:00:00]} Nf6 {[%emt 0:00:00]} 2. c4 {[%emt 0:00:12]} e6 {[%emt 0:00:15]} 3. Nf3 {[%emt 0:00:09]} c5 {[%emt 0:00:03]} 4. d5 {[%emt 0:00:11]} b5 {[%emt 0:00:03]} 5. e4 {[%emt 0:00:15]} Nxe4 {[%emt 0:00:22] E10: Blumenfeld Gambit} 6. Bd3 {[%emt 0:00:06]} Nf6 {[%emt 0:00:15]} 7. Nc3 {[%emt 0:02:03] LiveBook: 9 Games} (7. O-O Bb7 8. Nc3 Be7 9. Nxb5 exd5 10. cxd5 d6 11. Nh4 O-O 12. Nf5 a6 13. Nc3 {½-½ (44) Vitiugov,N (2724)-Kvon,A (2500) Helsingor 2017}) 7... b4 $146 {[%emt 0:05:30]} ({Predecessor:} 7... bxc4 $11 {remains equal.} 8. Bxc4 Ba6 9. Bxa6 Nxa6 10. O-O Nb4 11. Bg5 h6 12. Bxf6 Qxf6 13. Re1 {1-0 (39) Tari,A (2571)-Antipov,M (2584) Izmir 2016}) 8. Ne4 {[%emt 0:01:16]} d6 {[%emt 0:03:57]} (8... a5 $1 $14) 9. Nxf6+ {[%emt 0:15:37]} gxf6 {[%emt 0:06:08]} 10. dxe6 {[%emt 0:00:16]} fxe6 {[%emt 0:01:28]} (10... Bxe6 $16 11. Be4 Nd7) 11. Be4 {[%emt 0:26:29]} d5 {[%emt 0:00:00]} 12. cxd5 {[%emt 0:10:11]} Bb7 {[%emt 0:00:09]} 13. Ne5 {[%emt 0:08:14]} fxe5 {[%emt 0:05:08]} 14. Qh5+ {[%emt 0:00:20]} Kd7 {[%emt 0:00:01]} 15. Bg5 {[%emt 0:03:39]} Be7 {[%emt 0:05:41] [#]} 16. Qf7 $1 {[%emt 0:15:36]} exd5 {[%emt 0:05:11]} 17. Bf5+ {[%emt 0:03:09]} Kc6 $2 {[%emt 0:03:16]} (17... Kc7 {was called for.} 18. Bxe7 Qe8) 18. Bxe7 {[%emt 0:00:24]} Qg8 {[%emt 0:00:36]} (18... Qc7 $142 19. a4 Rd8 20. Qxh7 Na6) 19. Qf6+ {[%emt 0:00:28] Double Attack} Kb5 {[%emt 0:01:15]} 20. Qd6 {[%emt 0:02:43]} Na6 {[%emt 0:03:03]} 21. a3 {[%emt 0:00:39]} Qxg2 {[%emt 0:05:20]} 22. a4+ {[%emt 0:07:03]} Kc4 {[%emt 0:06:07]} 23. Ke2 {[%emt 0:01:50]} e4 {[%emt 0:01:01]} 24. b3+ {[%emt 0:00:37]} Kxb3 {[%emt 0:01:16]} 25. Rhb1+ {[%emt 0:01:28]} Kc2 {[%emt 0:03:38]} 26. Qf4 {[%emt 0:00:37]} Qf3+ {[%emt 0:00:00]} 27. Qxf3 {[%emt 0:00:07] Kb3 [%emt 00:00:18]} 1-0

[Event "Gibraltar Challengers B 2019"]
[Site "Caleta"]
[Date "2019.01.27"]
[Round "2"]
[White "Lucas Vega, Ivan"]
[Black "Spacapan, Simon"]
[Result "0-1"]
[ECO "B23"]
[WhiteElo "2203"]
[BlackElo "2061"]
[Annotator "NA"]
[PlyCount "68"]
[EventDate "2019.01.18"]
[EventType "swiss"]
[EventCountry "GGB"]
[SourceTitle "playchess.com"]
[Source "ChessBase"]
[SourceQuality "1"]
[TimeControl "6600+10"]

{[%evp 8,65,34,32767,32767,32767,10,10,22,7,32767,32767,-21,-23,9,0,1,2,32767,32767,32767,5,15,-4,66,35,32767,32767,32767,37,32767,32767,32767,23,13,-92,76,-203,-196,32767,32767,32767,-329,-316,-319,-321,-329,32767,32767,32767,-504,32767,32767,32767,32767,32767,32767,32767,32767,-1689]} 1. e4 {[%emt 0:00:00]} c5 {[%emt 0:00:03]} 2. Nc3 {[%emt 0:00:01]} d6 {[%emt 0:06:04]} 3. f4 {[%emt 0:00:22]} a6 {[%emt 0:03:39]} 4. Nf3 {[%emt 0:02:44]} Nf6 {[%emt 0:00:31] LiveBook: 33 Games B23: Closed Sicilian: Lines without g3} (4... Nc6 5. d3 g6 6. g3 Bg7 7. Bg2 f5 8. O-O Nh6 9. exf5 Nxf5 10. Ne4 O-O 11. c3 Kh8 12. g4 Nh6 {1-0 (34) Petrosian,T (2648)-Dziuba,M (2602) Warsaw 2012}) 5. d3 {[%emt 0:03:30]} e6 {[%emt 0:03:24]} 6. g3 {[%emt 0:01:22]} Be7 {[%emt 0:04:15]} 7. Bg2 {[%emt 0:01:53]} O-O {[%emt 0:05:51]} 8. O-O {[%emt 0:00:08]} b5 {[%emt 0:01:10]} 9. h3 {[%emt 0:01:23]} Bb7 {[%emt 0:00:41]} 10. g4 {[%emt 0:07:43]} Nbd7 {[%emt 0:13:11]} 11. Ne2 {[%emt 0:02:31]} Ne8 $146 {[%emt 0:19:50]} ({Predecessor:} 11... Nb6 12. f5 exf5 13. exf5 Nfd7 14. Nf4 Nd5 15. Nh5 N5f6 16. Nf4 Nd5 17. Nh5 N5f6 18. Nf4 {½-½ (18) Korevand,S (1938)-Moradi,S (1951) Rasht 2014}) 12. Ng3 {[%emt 0:04:47]} d5 {[%emt 0:02:32]} 13. e5 {[%emt 0:01:17]} d4 {[%emt 0:00:24]} 14. Qe2 {[%emt 0:03:19]} Nc7 {[%emt 0:06:21]} 15. Bd2 {[%emt 0:13:06]} Nb6 {[%emt 0:01:04]} (15... Nd5 $11) 16. Ne4 {[%emt 0:04:07]} Nbd5 {[%emt 0:13:10]} 17. Nh2 {[%emt 0:04:50]} Rc8 {[%emt 0:05:48]} 18. g5 {[%emt 0:10:56]} Kh8 {[%emt 0:02:23]} 19. Qh5 {[%emt 0:01:42]} Ba8 {[%emt 0:02:01]} 20. Ng4 {[%emt 0:07:02]} c4 {[%emt 0:00:16]} 21. Be1 {[%emt 0:11:02]} (21. Rad1 $11) 21... Ne8 $2 {[%emt 0:03:34]} (21... cxd3 $17 {and life is bright.} 22. cxd3 Ne3 23. Nxe3 dxe3) 22. Qh4 $2 {[%emt 0:09:20]} (22. f5 $1 $11 {and White stays safe.} exf5 23. Rxf5) 22... cxd3 {[%emt 0:00:55]} 23. cxd3 {[%emt 0:00:01]} Rc2 {[%emt 0:00:01]} 24. f5 {[%emt 0:06:58]} exf5 {[%emt 0:01:42]} ({Stronger than} 24... Rxb2 25. f6 $16) 25. Rxf5 {[%emt 0:00:01]} Ne3 {[%emt 0:05:09] Double Attack} (25... Rxb2 $2 26. Rf2 $19) 26. Nxe3 {[%emt 0:06:14]} dxe3 {[%emt 0:00:01]} 27. Rd1 {[%emt 0:01:49]} Rxb2 {[%emt 0:02:20]} 28. Bc3 {[%emt 0:00:15]} Rxa2 {[%emt 0:00:39]} 29. Rf3 {[%emt 0:03:27]} b4 {[%emt 0:00:14]} 30. Ba1 {[%emt 0:01:18]} e2 {[%emt 0:00:41]} 31. Re1 {[%emt 0:00:13]} Rxa1 {[%emt 0:00:25]} 32. Rxa1 {[%emt 0:00:02]} Qd4+ {[%emt 0:00:05]} 33. Kh2 $19 {[%emt 0:00:59]} Qxa1 {[%emt 0:00:01]} 34. Nf6 {[%emt 0:00:34]} Qxe5+ {[%emt 0:00:46]} 0-1

[Event "Gibraltar Challengers B 2019"]
[Site "Caleta"]
[Date "2019.01.27"]
[Round "2"]
[White "Pavlov, Egor"]
[Black "Alami, Halim"]
[Result "1/2-1/2"]
[ECO "E07"]
[WhiteElo "2187"]
[BlackElo "2059"]
[Annotator "NA"]
[PlyCount "83"]
[EventDate "2019.01.18"]
[EventType "swiss"]
[EventCountry "GGB"]
[SourceTitle "playchess.com"]
[Source "ChessBase"]
[SourceQuality "1"]
[TimeControl "6600+10"]

1. d4 {[%emt 0:00:00]} d5 {[%emt 0:03:55]} 2. c4 {[%emt 0:00:00]} e6 {[%emt 0:00:42]} 3. Nf3 {[%emt 0:00:22]} c6 {[%emt 0:00:52]} 4. Nbd2 {[%emt 0:00:57]} f5 {[%emt 0:00:17]} 5. g3 {[%emt 0:00:07]} Nf6 {[%emt 0:00:06]} 6. Bg2 {[%emt 0:00:05]} Be7 {[%emt 0:01:12]} 7. O-O {[%emt 0:00:06]} O-O {[%emt 0:00:19]} 8. b3 {[%emt 0:00:40]} Ne4 {[%emt 0:00:47]} 9. Bb2 {[%emt 0:01:00]} Nd7 {[%emt 0:11:32]} 10. Ne5 {[%emt 0:02:56] E07: Closed Catalan: Main Line (5 Nf3 0-0 6 0-0 Nbd7)} (10. e3 Nd6 11. Qc2 Nf6 12. Ne5 Bd7 13. Nd3 Be8 14. Nf3 Nf7 15. a4 a5 16. c5 g5 17. Bc3 Bd7 {½-½ (26) Globus,O (2253)-Williams,S (2453) London 2017}) 10... Nxe5 {[%emt 0:02:28]} 11. dxe5 {[%emt 0:00:06]} Nxd2 {[%emt 0:05:10]} 12. Qxd2 {[%emt 0:00:03]} dxc4 {[%emt 0:02:12]} 13. Qc2 {[%emt 0:01:35]} cxb3 {[%emt 0:00:32]} 14. axb3 {[%emt 0:00:04]} Qc7 $146 {[%emt 0:01:00]} ({Predecessor:} 14... Bd7 15. Rfd1 Qc8 16. Qd3 Rd8 17. Qc4 Be8 18. Rxd8 Bxd8 {0-1 (57) Vydeslaver,A-Len,I (2105) Ramat Aviv 2004}) 15. e4 {[%emt 0:02:01]} f4 {[%emt 0:13:09]} 16. gxf4 {[%emt 0:02:02]} Rxf4 {[%emt 0:01:29]} 17. Bd4 {[%emt 0:02:59]} b6 {[%emt 0:08:36]} 18. Be3 {[%emt 0:00:51]} Rf7 {[%emt 0:06:25]} 19. f4 {[%emt 0:00:49]} Bd7 {[%emt 0:01:13]} 20. Kh1 {[%emt 0:07:27]} Raf8 {[%emt 0:00:42]} 21. Rfd1 {[%emt 0:04:09]} Bc8 {[%emt 0:03:21]} 22. Bh3 {[%emt 0:04:43]} a5 {[%emt 0:05:20]} 23. Qc4 {[%emt 0:12:25]} b5 {[%emt 0:03:16]} 24. Qc3 {[%emt 0:00:45]} Bb4 {[%emt 0:00:44]} 25. Qc2 {[%emt 0:00:17]} Kh8 {[%emt 0:02:06]} 26. Rac1 {[%emt 0:03:17]} Bd7 {[%emt 0:04:27]} 27. Qe2 {[%emt 0:08:27]} Qb7 {[%emt 0:03:55]} 28. Qh5 {[%emt 0:07:32]} c5 {[%emt 0:02:44]} 29. Bg2 {[%emt 0:06:11]} Bc6 {[%emt 0:04:24]} 30. Qf3 {[%emt 0:05:20]} g6 {[%emt 0:06:51]} 31. Rd6 {[%emt 0:07:50]} Ba3 {[%emt 0:05:38]} 32. Rxe6 {[%emt 0:12:51]} (32. Rc3 $17) 32... Bxc1 {[%emt 0:01:25]} 33. Bxc1 {[%emt 0:00:01]} Rd7 {[%emt 0:00:29]} 34. Rd6 {[%emt 0:02:10]} Rxd6 {[%emt 0:00:12]} 35. exd6 {[%emt 0:00:06]} Re8 $2 {[%emt 0:00:32]} ({Black should try} 35... Qg7 $19 36. Qf2 Qa1) 36. Bb2+ {[%emt 0:02:17]} Kg8 {[%emt 0:00:02]} 37. Qc3 {[%emt 0:00:29]} Bxe4 {[%emt 0:01:29]} 38. Qh8+ {[%emt 0:00:25]} Kf7 {[%emt 0:00:02]} 39. Qf6+ $1 {[%emt 0:05:43]} ({Don't play} 39. Qxh7+ Ke6 $17) 39... Kg8 {[%emt 0:00:03]} 40. Qh8+ {[%emt 0:01:14]} Kf7 {[%emt 0:00:01]} 41. Qf6+ $11 {[%emt 0:03:13]} Kg8 {[%emt 0:00:03]} 42. Qh8+ {[%emt 0:01:39]} 1/2-1/2

[Event "Gibraltar Challengers B 2019"]
[Site "Caleta"]
[Date "2019.01.27"]
[Round "2"]
[White "Orndahl, Markus"]
[Black "Hamer, Martyn"]
[Result "1-0"]
[ECO "C26"]
[WhiteElo "2173"]
[BlackElo "2046"]
[Annotator "NA"]
[PlyCount "101"]
[EventDate "2019.01.18"]
[EventType "swiss"]
[EventCountry "GGB"]
[SourceTitle "playchess.com"]
[Source "ChessBase"]
[SourceQuality "1"]
[TimeControl "6600+10"]

1. e4 {[%emt 0:04:53]} e5 {[%emt 0:00:00]} 2. Nc3 {[%emt 0:00:17]} Nf6 {[%emt 0:00:06]} 3. g3 {[%emt 0:00:34]} Nc6 {[%emt 0:01:14]} 4. Bg2 {[%emt 0:00:15]} Bc5 {[%emt 0:00:49]} 5. d3 {[%emt 0:01:59]} O-O {[%emt 0:04:01]} 6. Nge2 {[%emt 0:00:18]} a6 {[%emt 0:04:20]} 7. O-O {[%emt 0:00:38]} d6 {[%emt 0:01:19]} 8. h3 {[%emt 0:00:35]} Nd4 {[%emt 0:04:37] C26: Vienna Game: 2...Nf6, sidelines} (8... Be6 9. Kh2 d5 10. Bg5 dxe4 11. Nxe4 Be7 12. Bxf6 Bxf6 13. f4 Be7 14. f5 Bd7 15. f6 gxf6 16. g4 f5 17. gxf5 {1-0 (32) Mamedov,R (2709)-Alekseev,E (2616) Riadh 2017}) 9. Kh2 {[%emt 0:06:22] LiveBook: 10 Games} Re8 {[%emt 0:05:17]} 10. f4 {[%emt 0:33:27]} Nxe2 $146 {[%emt 0:04:00]} ({Predecessor:} 10... Qe7 11. f5 Bd7 12. g4 h6 13. Ng3 c6 14. g5 hxg5 15. Bxg5 {1-0 (61) Martin Molinero,R (2318)-Danzanvilliers,P (2315) ICCF email 2008}) 11. Nxe2 {[%emt 0:04:16]} exf4 {[%emt 0:02:38]} 12. Nxf4 {[%emt 0:08:59]} Bb6 {[%emt 0:04:08]} 13. Qf3 {[%emt 0:00:37]} Qe7 {[%emt 0:03:51]} 14. Bd2 {[%emt 0:01:10]} c6 {[%emt 0:03:38]} 15. Bc3 {[%emt 0:02:13]} Bd8 {[%emt 0:03:11]} 16. Rae1 {[%emt 0:00:21]} Be6 {[%emt 0:04:58]} 17. Re2 {[%emt 0:04:46]} Qd7 {[%emt 0:03:09]} 18. Ref2 {[%emt 0:04:12]} a5 {[%emt 0:05:09]} 19. a4 {[%emt 0:02:27]} Rf8 {[%emt 0:05:50]} 20. Kh1 {[%emt 0:01:46]} d5 {[%emt 0:04:24]} 21. e5 {[%emt 0:06:00]} Ne8 {[%emt 0:00:13]} 22. Kh2 {[%emt 0:05:31]} Nc7 {[%emt 0:06:12]} 23. Bd4 {[%emt 0:03:34]} Be7 {[%emt 0:02:05]} 24. Qe3 {[%emt 0:00:31]} Na6 {[%emt 0:01:56]} 25. Nh5 {[%emt 0:00:54]} Kh8 {[%emt 0:02:25]} 26. b3 {[%emt 0:03:17]} c5 {[%emt 0:05:02]} 27. Bb2 {[%emt 0:00:05]} Nc7 {[%emt 0:01:21]} 28. c4 {[%emt 0:00:32]} Rad8 {[%emt 0:00:59]} 29. Bc1 {[%emt 0:00:38]} dxc4 {[%emt 0:05:30]} (29... Ne8 $16 {was worth a try.}) 30. dxc4 {[%emt 0:00:08]} Qd3 {[%emt 0:01:08] [#]} 31. Qxd3 $1 {[%emt 0:00:29]} ({Worse is} 31. Bxb7 Qxe3 32. Bxe3 Rd3 $11) 31... Rxd3 {[%emt 0:00:07]} 32. Nf4 {[%emt 0:00:06]} Rxb3 {[%emt 0:03:17]} 33. Nxe6 {[%emt 0:00:12]} Nxe6 {[%emt 0:00:07]} 34. Rxf7 {[%emt 0:01:41]} Re8 {[%emt 0:02:39]} 35. Bd5 {[%emt 0:00:23]} Rb6 {[%emt 0:01:27]} 36. h4 {[%emt 0:01:35]} h6 {[%emt 0:01:23]} 37. Kh3 {[%emt 0:00:14]} g5 {[%emt 0:01:27]} 38. Be4 {[%emt 0:01:26]} Kg8 {[%emt 0:02:04]} 39. h5 {[%emt 0:02:48]} Bf8 {[%emt 0:00:40]} 40. Bh7+ {[%emt 0:00:39]} Kh8 {[%emt 0:00:06]} 41. Bg6 {[%emt 0:00:19]} Rd8 {[%emt 0:00:32]} 42. Be4 {[%emt 0:03:15]} Bg7 {[%emt 0:00:59]} 43. Bd5 {[%emt 0:00:08]} Nd4 $18 {[%emt 0:01:53]} 44. Re7 {[%emt 0:00:48]} Rf8 {[%emt 0:00:52]} 45. Rxf8+ {[%emt 0:00:25]} Bxf8 {[%emt 0:00:04]} 46. Re8 {[%emt 0:00:28]} Kg7 {[%emt 0:00:07]} 47. Ra8 {[%emt 0:00:07]} Rb3 {[%emt 0:00:48]} 48. Bd2 {[%emt 0:00:33]} Rd3 {[%emt 0:00:24]} 49. Bxa5 {[%emt 0:00:21]} Nf5 {[%emt 0:00:37]} 50. Be4 {[%emt 0:00:29]} Rxg3+ {[%emt 0:00:17]} 51. Kh2 {[%emt 0:00:01]} 1-0

[Event "Gibraltar Challengers B 2019"]
[Site "Caleta"]
[Date "2019.01.27"]
[Round "2"]
[White "Bengherabi, Khalil"]
[Black "Probst, Alexander"]
[Result "1/2-1/2"]
[ECO "C47"]
[WhiteElo "2150"]
[BlackElo "1976"]
[Annotator "NA"]
[PlyCount "105"]
[EventDate "2019.01.18"]
[EventType "swiss"]
[EventCountry "GGB"]
[SourceTitle "playchess.com"]
[Source "ChessBase"]
[SourceQuality "1"]
[TimeControl "6600+10"]

1. e4 {[%emt 0:09:19]} e5 {[%emt 0:00:22]} 2. Nf3 {[%emt 0:00:14]} Nf6 {[%emt 0:00:14]} 3. Nc3 {[%emt 0:00:11]} Nc6 {[%emt 0:00:36]} 4. d4 {[%emt 0:00:05]} exd4 {[%emt 0:00:10]} 5. Nxd4 {[%emt 0:00:03]} Bb4 {[%emt 0:00:50]} 6. Nxc6 {[%emt 0:01:45]} bxc6 {[%emt 0:00:13]} 7. Bd3 {[%emt 0:00:09]} d5 {[%emt 0:00:40]} 8. exd5 {[%emt 0:00:19]} cxd5 {[%emt 0:00:42]} 9. O-O {[%emt 0:00:04]} O-O {[%emt 0:00:44]} 10. Bg5 {[%emt 0:00:03]} c6 {[%emt 0:00:25]} 11. Qf3 {[%emt 0:00:04]} Be7 {[%emt 0:03:27]} 12. h3 {[%emt 0:00:40]} Be6 {[%emt 0:02:43]} 13. Ne2 {[%emt 0:02:34]} Nd7 {[%emt 0:04:53] LiveBook: 3 Games C47: Scotch Four Knights and Four Knights with 4 g3} 14. Bxe7 {[%emt 0:01:01]} Qxe7 {[%emt 0:00:08]} 15. Rfe1 {[%emt 0:01:14]} Qf6 {[%emt 0:06:59]} 16. Qxf6 {[%emt 0:02:37]} Nxf6 {[%emt 0:00:41]} 17. Nd4 {[%emt 0:00:27]} Bd7 {[%emt 0:01:08] [#]} 18. Bf5 $146 {[%emt 0:07:29]} ({Predecessor:} 18. Nb3 Rae8 19. Kf1 Rxe1+ 20. Rxe1 Re8 {½-½ (59) Lintchevski,D (2554)-Amirkhanov,R (2293) Kazan 2015}) 18... Rab8 {[%emt 0:12:30]} 19. Bxd7 {[%emt 0:02:29]} Nxd7 {[%emt 0:00:33] [#]} 20. Re7 $1 {[%emt 0:01:07]} Nf6 {[%emt 0:01:51]} 21. b3 {[%emt 0:00:21]} ({Don't play} 21. Nxc6 Rxb2 22. Rxa7 Rxc2 $14) 21... c5 {[%emt 0:03:07]} 22. Nc6 {[%emt 0:01:16]} Rb6 {[%emt 0:04:40]} 23. Nxa7 {[%emt 0:03:29]} Ra8 {[%emt 0:01:48]} 24. a4 {[%emt 0:00:23]} c4 {[%emt 0:03:39]} 25. Rb1 {[%emt 0:00:14]} Kf8 {[%emt 0:03:59]} 26. Rc7 {[%emt 0:01:05]} Ne8 {[%emt 0:00:48]} 27. Rc6 {[%emt 0:01:01]} Rxc6 {[%emt 0:08:01]} 28. Nxc6 {[%emt 0:00:25]} Nf6 {[%emt 0:01:43]} 29. a5 {[%emt 0:01:11]} Ra6 {[%emt 0:00:48]} 30. Ne5 {[%emt 0:00:16]} cxb3 {[%emt 0:01:19]} 31. Rxb3 {[%emt 0:04:48]} Rxa5 {[%emt 0:01:21]} 32. Rb7 $1 {[%emt 0:00:04]} d4 {[%emt 0:01:51]} 33. f4 {[%emt 0:01:55]} Rc5 {[%emt 0:04:17]} 34. Rxf7+ {[%emt 0:01:53]} Kg8 {[%emt 0:02:17]} 35. Rb7 {[%emt 0:00:15]} h5 {[%emt 0:02:16]} 36. Rb2 {[%emt 0:01:02]} Nd5 {[%emt 0:00:54]} 37. Nd3 {[%emt 0:05:14]} Rc4 {[%emt 0:01:45]} 38. Ra2 {[%emt 0:09:04]} Ne3 {[%emt 0:01:15]} 39. Ne1 {[%emt 0:00:10]} Nd5 {[%emt 0:01:49]} 40. Kf2 {[%emt 0:08:34]} Nxf4 {[%emt 0:01:27]} 41. Kf3 {[%emt 0:00:14]} g5 {[%emt 0:01:58]} 42. Ke4 {[%emt 0:01:30]} d3+ {[%emt 0:01:21]} 43. Ke3 {[%emt 0:00:03]} dxc2 {[%emt 0:00:27]} 44. Rxc2 {[%emt 0:02:01]} Rxc2 {[%emt 0:00:35]} 45. Nxc2 {[%emt 0:00:02]} Nxg2+ {[%emt 0:00:12]} 46. Ke4 {[%emt 0:00:03]} Kg7 {[%emt 0:01:10]} 47. Kf3 {[%emt 0:02:28]} Nh4+ {[%emt 0:00:39]} 48. Ke4 {[%emt 0:00:28]} Kf6 {[%emt 0:00:14]} 49. Ne3 {[%emt 0:00:05]} Ng6 {[%emt 0:00:58]} 50. Nd5+ {[%emt 0:00:17]} Ke6 {[%emt 0:00:13]} 51. Nc7+ {[%emt 0:00:07]} Kf6 {[%emt 0:00:54]} 52. Nd5+ $11 {[%emt 0:00:06]} Ke6 {[%emt 0:00:21]} 53. Nc7+ {[%emt 0:00:04] Ke5+ [%emt 00:00:12]} 1/2-1/2

[Event "Gibraltar Challengers B 2019"]
[Site "Caleta"]
[Date "2019.01.27"]
[Round "2"]
[White "Haase, Pavel"]
[Black "Fegan, Chris"]
[Result "1/2-1/2"]
[ECO "A05"]
[WhiteElo "2141"]
[BlackElo "2024"]
[Annotator "NA"]
[PlyCount "32"]
[EventDate "2019.01.18"]
[EventType "swiss"]
[EventCountry "GGB"]
[SourceTitle "playchess.com"]
[Source "ChessBase"]
[SourceQuality "1"]
[TimeControl "6600+10"]

1. Nf3 {[%emt 0:00:01]} Nf6 {[%emt 0:00:31]} 2. b3 {[%emt 0:00:27]} g6 {[%emt 0:00:42]} 3. Bb2 {[%emt 0:00:07]} Bg7 {[%emt 0:00:12]} 4. e4 {[%emt 0:04:54]} O-O {[%emt 0:02:23]} 5. e5 {[%emt 0:02:24]} Nd5 {[%emt 0:02:45]} 6. c4 {[%emt 0:01:21]} Nb4 {[%emt 0:03:37]} 7. Bc3 {[%emt 0:07:32]} c5 {[%emt 0:03:54]} 8. d4 {[%emt 0:08:41]} d6 {[%emt 0:01:53]} 9. a3 {[%emt 0:04:56]} N4c6 {[%emt 0:01:52]} 10. exd6 {[%emt 0:06:44]} (10. d5 $15 Nxe5 11. Nxe5 dxe5 12. Be2) 10... cxd4 {[%emt 0:04:06]} 11. Nxd4 {[%emt 0:03:07]} Qxd6 {[%emt 0:06:21]} 12. Nb5 $17 {[%emt 0:03:33]} Qxd1+ {[%emt 0:01:01]} 13. Kxd1 {[%emt 0:00:03]} Rd8+ {[%emt 0:00:34]} 14. Ke1 {[%emt 0:01:09]} Na6 {[%emt 0:04:00]} 15. Bxg7 {[%emt 0:03:36]} Kxg7 {[%emt 0:00:07]} 16. b4 {[%emt 0:04:49]} Bf5 {[%emt 0:05:42]} 1/2-1/2

[Event "Gibraltar Challengers B 2019"]
[Site "Caleta"]
[Date "2019.01.27"]
[Round "2"]
[White "Ramasindraibe, Girard"]
[Black "Adebajo, Olufemi"]
[Result "1-0"]
[ECO "B07"]
[WhiteElo "2129"]
[BlackElo "1915"]
[Annotator "NA"]
[PlyCount "82"]
[EventDate "2019.01.18"]
[EventType "swiss"]
[EventCountry "GGB"]
[SourceTitle "playchess.com"]
[Source "ChessBase"]
[SourceQuality "1"]
[TimeControl "6600+10"]

1. e4 {[%emt 0:00:00]} d6 {[%emt 0:07:04]} 2. d4 {[%emt 0:00:20]} Nf6 {[%emt 0:00:09]} 3. Nc3 {[%emt 0:00:09]} c6 {[%emt 0:00:13]} 4. f4 {[%emt 0:01:11]} b5 {[%emt 0:00:55] B07: Pirc Defence: Miscellaneous Systems} (4... Qa5 5. Bd3 e5 6. Nf3 Bg4 7. Be3 Nbd7 8. O-O Be7 9. h3 Bxf3 10. Qxf3 O-O 11. Ne2 Bd8 12. c3 b5 13. a3 Qa4 14. Rad1 Qb3 15. Rd2 Nb6 16. dxe5 dxe5 17. fxe5 Nfd7 18. Nd4 Qa4 19. Nxc6 {1-0 (47) Karjakin,S (2753)-Petrosian,T (2598) St Petersburg 2018}) 5. a3 {[%emt 0:00:38]} Qa5 {[%emt 0:00:11]} 6. Bd2 {[%emt 0:00:29]} Qb6 {[%emt 0:00:25]} 7. Nf3 {[%emt 0:00:15]} Bg4 {[%emt 0:01:14]} 8. e5 $146 {[%emt 0:08:19]} ({Predecessor:} 8. Be3 e6 9. Qd3 Bxf3 10. gxf3 d5 11. Bh3 Na6 12. O-O {0-1 (81) Sie,T (2148)-Pang,Y (1963) Baku 2016}) 8... dxe5 {[%emt 0:02:28]} 9. dxe5 {[%emt 0:03:32]} Nfd7 {[%emt 0:03:01]} (9... Nd5 $16) 10. h3 {[%emt 0:00:37]} Be6 {[%emt 0:13:02]} 11. Ng5 {[%emt 0:02:46]} Na6 {[%emt 0:00:38]} 12. Nxe6 {[%emt 0:00:26]} fxe6 {[%emt 0:00:14]} 13. Qf3 {[%emt 0:06:27]} O-O-O {[%emt 0:01:31]} 14. Ne4 {[%emt 0:09:05]} h6 {[%emt 0:02:07]} 15. h4 {[%emt 0:00:46]} Nc7 {[%emt 0:00:49]} 16. Be3 {[%emt 0:04:54]} Qb7 {[%emt 0:00:32]} 17. a4 {[%emt 0:07:16]} b4 {[%emt 0:02:12]} 18. a5 {[%emt 0:00:28]} Nd5 {[%emt 0:01:47]} 19. Bc5 {[%emt 0:18:58]} g6 {[%emt 0:08:25]} 20. c4 {[%emt 0:00:52]} (20. g3 $142) 20... bxc3 {[%emt 0:00:44]} 21. bxc3 {[%emt 0:00:04]} Bg7 {[%emt 0:04:39]} 22. Bd3 {[%emt 0:00:14]} Nxc3 {[%emt 0:01:27]} 23. O-O $2 {[%emt 0:06:41]} (23. Bxe7 $18 Bxe5 24. Rc1 (24. Bxd8 Nxe4 25. Rb1 Bc3+ 26. Kd1 Rxd8 $18)) 23... Nxe4 {[%emt 0:00:54]} 24. Bxe4 {[%emt 0:00:04]} Nxc5 {[%emt 0:00:58]} 25. Bxc6 {[%emt 0:00:05]} Qb3 {[%emt 0:00:47]} 26. Qf2 {[%emt 0:03:24]} Nd3 $2 {[%emt 0:11:40]} (26... Qb4 $16) 27. Qxa7 {[%emt 0:00:42]} Qb8 {[%emt 0:00:13]} 28. Qxe7 {[%emt 0:07:20]} Bf8 {[%emt 0:02:18]} 29. Qxe6+ {[%emt 0:00:06]} Kc7 {[%emt 0:00:34]} 30. Be4 {[%emt 0:02:10]} Bc5+ {[%emt 0:01:36]} 31. Kh2 {[%emt 0:00:07]} Qb5 {[%emt 0:03:34]} 32. Rab1 {[%emt 0:01:58]} Nb4 {[%emt 0:01:42]} 33. Rfc1 {[%emt 0:00:49]} Kb8 {[%emt 0:02:02]} 34. Qc4 {[%emt 0:10:56]} Qxc4 {[%emt 0:02:09]} 35. Rxc4 {[%emt 0:00:01]} Be7 {[%emt 0:00:41]} 36. Rbxb4+ {[%emt 0:00:04]} Bxb4 {[%emt 0:00:23]} 37. Rxb4+ {[%emt 0:00:02]} Ka7 {[%emt 0:00:13]} 38. Bxg6 {[%emt 0:00:15]} Rhg8 {[%emt 0:01:31]} 39. h5 {[%emt 0:00:31]} Ka6 {[%emt 0:01:05]} 40. e6 $18 {[%emt 0:00:37]} Kxa5 {[%emt 0:00:26]} 41. Re4 {[%emt 0:00:04]} Rh8 {[%emt 0:01:34]} 1-0

[Event "Gibraltar Challengers B 2019"]
[Site "Caleta"]
[Date "2019.01.27"]
[Round "2"]
[White "Jordan Martinez, David"]
[Black "Garcia Rodriguez, Inaki"]
[Result "1-0"]
[ECO "C43"]
[WhiteElo "2125"]
[BlackElo "1931"]
[Annotator "NA"]
[PlyCount "35"]
[EventDate "2019.01.18"]
[EventType "swiss"]
[EventCountry "GGB"]
[SourceTitle "playchess.com"]
[Source "ChessBase"]
[SourceQuality "1"]
[TimeControl "6600+10"]

1. e4 {[%emt 0:01:45]} e5 {[%emt 0:00:00]} 2. Nf3 {[%emt 0:00:06]} Nf6 {[%emt 0:00:08]} 3. d4 {[%emt 0:01:32]} Nxe4 {[%emt 0:01:38]} 4. Bd3 {[%emt 0:00:02]} d5 {[%emt 0:00:16]} 5. Nxe5 {[%emt 0:00:04]} Bd6 {[%emt 0:03:55]} 6. O-O {[%emt 0:00:10]} O-O {[%emt 0:00:19]} 7. c4 {[%emt 0:04:29]} c6 {[%emt 0:08:29]} 8. cxd5 {[%emt 0:00:22]} cxd5 {[%emt 0:00:25]} 9. Nc3 {[%emt 0:01:35]} Nxc3 {[%emt 0:02:29]} 10. bxc3 {[%emt 0:00:04]} Bxe5 {[%emt 0:05:53]} 11. dxe5 {[%emt 0:00:05]} Qc7 {[%emt 0:03:25]} 12. Re1 {[%emt 0:13:23]} ({White should play} 12. Ba3 $16) 12... Re8 {[%emt 0:03:53]} 13. Qh5 {[%emt 0:00:44]} g6 {[%emt 0:00:12]} 14. Qh6 {[%emt 0:03:35]} Nd7 {[%emt 0:09:19]} 15. Bg5 {[%emt 0:02:15]} Rxe5 {[%emt 0:19:02]} 16. f4 {[%emt 0:20:06]} Rxe1+ {[%emt 0:07:45]} 17. Rxe1 {[%emt 0:00:08]} Nf8 {[%emt 0:00:49]} (17... Qc5+ $16 18. Kh1 Qf8) 18. Qxf8+ {[%emt 0:01:39]} 1-0